[Event "December 19 Early 2023"]
[Site "https://www.chess.com"]
[Date "2023.12.19"]
[Round "9"]
[White "Shuvalov, Evgenij"]
[Black "Skibbe, Willi"]
[Result "1-0"]
[Board "96"]
[TimeControl "180+1"]
[WhiteFideId "4187237"]
[BlackFideId "4682190"]
[WhiteElo "2084"]
[BlackElo "2371"]
[WhiteTeam "FID"]
[BlackTeam "GER"]
[WhiteClock "0:01:32"]
[BlackClock "0:00:01"]

1. d4 {[%clk 0:03:00]}  d5 {[%clk 0:02:49]} 2. c4 {[%clk 0:03:00]}  c6 {[%clk 0:02:48]} 3. Nc3 {[%clk 0:03:00]}  Nf6 {[%clk 0:02:48]} 4. e3 {[%clk 0:03:00]}  a6 {[%clk 0:02:46]} 5. Nf3 {[%clk 0:03:00]}  Bf5 {[%clk 0:02:36]} 6. Be2 {[%clk 0:02:50]}  e6 {[%clk 0:02:34]} 7. Nh4 {[%clk 0:02:50]}  Bg6 {[%clk 0:02:34]} 8. Nxg6 {[%clk 0:02:49]}  hxg6 {[%clk 0:02:34]} 9. O-O {[%clk 0:02:49]}  Be7 {[%clk 0:02:27]} 10. Qc2 {[%clk 0:02:42]}  O-O {[%clk 0:02:23]} 11. Rd1 {[%clk 0:02:39]}  b5 {[%clk 0:02:16]} 12. b3 {[%clk 0:02:36]}  Nbd7 {[%clk 0:02:10]} 13. e4 {[%clk 0:02:27]}  b4 {[%clk 0:01:51]} 14. e5 {[%clk 0:02:27]}  bxc3 {[%clk 0:01:42]} 15. exf6 {[%clk 0:02:27]}  Bxf6 {[%clk 0:01:43]} 16. Qxc3 {[%clk 0:02:25]}  c5 {[%clk 0:01:42]} 17. Be3 {[%clk 0:02:25]}  Qc7 {[%clk 0:00:46]} 18. cxd5 {[%clk 0:02:20]}  exd5 {[%clk 0:00:43]} 19. Rac1 {[%clk 0:02:20]}  Qa7 {[%clk 0:00:30]} 20. Bf3 {[%clk 0:02:14]}  cxd4 {[%clk 0:00:25]} 21. Bxd4 {[%clk 0:02:13]}  Bxd4 {[%clk 0:00:25]} 22. Qxd4 {[%clk 0:02:13]}  Qxd4 {[%clk 0:00:23]} 23. Rxd4 {[%clk 0:02:14]}  Nf6 {[%clk 0:00:22]} 24. Bxd5 {[%clk 0:02:09]}  Rfd8 {[%clk 0:00:16]} 25. Rcd1 {[%clk 0:02:09]}  Nxd5 {[%clk 0:00:16]} 26. Rxd5 {[%clk 0:02:10]}  Rxd5 {[%clk 0:00:16]} 27. Rxd5 {[%clk 0:02:11]}  Rc8 {[%clk 0:00:17]} 28. g3 {[%clk 0:02:10]}  Rc2 {[%clk 0:00:15]} 29. Ra5 {[%clk 0:02:10]}  Rc6 {[%clk 0:00:16]} 30. h4 {[%clk 0:02:09]}  f6 {[%clk 0:00:14]} 31. Kg2 {[%clk 0:02:09]}  Kh7 {[%clk 0:00:15]} 32. Kf3 {[%clk 0:02:09]}  Re6 {[%clk 0:00:15]} 33. b4 {[%clk 0:02:07]}  Rb6 {[%clk 0:00:14]} 34. a3 {[%clk 0:02:07]}  Re6 {[%clk 0:00:14]} 35. Kf4 {[%clk 0:02:04]}  Kh6 {[%clk 0:00:13]} 36. g4 {[%clk 0:02:00]}  Kh7 {[%clk 0:00:12]} 37. a4 {[%clk 0:01:53]}  Kg8 {[%clk 0:00:10]} 38. b5 {[%clk 0:01:47]}  axb5 {[%clk 0:00:11]} 39. Rxb5 {[%clk 0:01:45]}  Re2 {[%clk 0:00:11]} 40. f3 {[%clk 0:01:42]}  Ra2 {[%clk 0:00:11]} 41. a5 {[%clk 0:01:41]}  Ra4+ {[%clk 0:00:11]} 42. Ke3 {[%clk 0:01:40]}  Ra3+ {[%clk 0:00:10]} 43. Ke4 {[%clk 0:01:40]}  Ra4+ {[%clk 0:00:10]} 44. Kd5 {[%clk 0:01:41]}  Ra3 {[%clk 0:00:11]} 45. Kc6 {[%clk 0:01:39]}  Rxf3 {[%clk 0:00:10]} 46. Kb7 {[%clk 0:01:39]}  Rf4 {[%clk 0:00:09]} 47. a6 {[%clk 0:01:38]}  Rxg4 {[%clk 0:00:09]} 48. a7 {[%clk 0:01:39]}  Ra4 {[%clk 0:00:07]} 49. a8=Q+ {[%clk 0:01:38]}  Rxa8 {[%clk 0:00:07]} 50. Kxa8 {[%clk 0:01:39]}  f5 {[%clk 0:00:07]} 51. Kb7 {[%clk 0:01:38]}  Kh7 {[%clk 0:00:08]} 52. Kc6 {[%clk 0:01:36]}  Kh6 {[%clk 0:00:09]} 53. Kd5 {[%clk 0:01:34]}  Kh5 {[%clk 0:00:09]} 54. Rb4 {[%clk 0:01:34]}  g5 {[%clk 0:00:09]} 55. hxg5 {[%clk 0:01:35]}  Kxg5 {[%clk 0:00:10]} 56. Ke5 {[%clk 0:01:35]}  g6 {[%clk 0:00:10]} 57. Rb1 {[%clk 0:01:33]}  Kh5 {[%clk 0:00:01]} 58. Kf4 {[%clk 0:01:32]} 1-0

[Event "December 19 Early 2023"]
[Site "https://www.chess.com"]
[Date "2023.12.19"]
[Round "9"]
[White "Mesa Cruz, Juan Carlos"]
[Black "Santos Flores, Alberto"]
[Result "0-1"]
[Board "99"]
[TimeControl "180+1"]
[WhiteFideId "6423400"]
[BlackFideId "3601234"]
[WhiteElo "2142"]
[BlackElo "2229"]
[WhiteTeam "DOM"]
[BlackTeam "ECU"]
[WhiteClock "0:00:00"]
[BlackClock "0:00:20"]

1. e4 {[%clk 0:02:56]}  e6 {[%clk 0:03:00]} 2. Qe2 {[%clk 0:02:55]}  c5 {[%clk 0:02:59]} 3. Nf3 {[%clk 0:02:55]}  Nc6 {[%clk 0:02:59]} 4. g3 {[%clk 0:02:54]}  g6 {[%clk 0:02:59]} 5. Bg2 {[%clk 0:02:54]}  Bg7 {[%clk 0:02:59]} 6. O-O {[%clk 0:02:54]}  Nge7 {[%clk 0:03:00]} 7. c3 {[%clk 0:02:44]}  O-O {[%clk 0:03:00]} 8. Na3 {[%clk 0:02:36]}  d6 {[%clk 0:02:52]} 9. Nc2 {[%clk 0:02:34]}  Rb8 {[%clk 0:02:48]} 10. a4 {[%clk 0:02:29]}  a6 {[%clk 0:02:47]} 11. d4 {[%clk 0:02:26]}  cxd4 {[%clk 0:02:47]} 12. Nfxd4 {[%clk 0:02:20]}  Nxd4 {[%clk 0:02:47]} 13. Nxd4 {[%clk 0:02:15]}  d5 {[%clk 0:02:47]} 14. e5 {[%clk 0:02:06]}  Nc6 {[%clk 0:02:43]} 15. f4 {[%clk 0:01:57]}  Nxd4 {[%clk 0:02:41]} 16. cxd4 {[%clk 0:01:57]}  Bd7 {[%clk 0:02:41]} 17. Be3 {[%clk 0:01:52]}  Qb6 {[%clk 0:02:39]} 18. Rfc1 {[%clk 0:01:46]}  Rfc8 {[%clk 0:02:39]} 19. Rc5 {[%clk 0:01:46]}  Bf8 {[%clk 0:02:39]} 20. Rc3 {[%clk 0:01:40]}  Rxc3 {[%clk 0:02:30]} 21. bxc3 {[%clk 0:01:39]}  Qa5 {[%clk 0:02:29]} 22. Bd2 {[%clk 0:01:27]}  Bxa4 {[%clk 0:02:09]} 23. g4 {[%clk 0:01:00]}  Bb5 {[%clk 0:02:03]} 24. Qe1 {[%clk 0:00:51]}  Qc7 {[%clk 0:02:02]} 25. f5 {[%clk 0:00:50]}  Qd7 {[%clk 0:01:54]} 26. Qh4 {[%clk 0:00:38]}  Bd3 {[%clk 0:01:46]} 27. f6 {[%clk 0:00:29]}  Be4 {[%clk 0:01:45]} 28. Bxe4 {[%clk 0:00:18]}  dxe4 {[%clk 0:01:46]} 29. Re1 {[%clk 0:00:18]}  a5 {[%clk 0:01:34]} 30. Bh6 {[%clk 0:00:16]}  Qd8 {[%clk 0:01:34]} 31. Re3 {[%clk 0:00:14]}  Bxh6 {[%clk 0:01:24]} 32. Qxh6 {[%clk 0:00:14]}  Qf8 {[%clk 0:01:24]} 33. Qf4 {[%clk 0:00:14]}  a4 {[%clk 0:01:21]} 34. Qxe4 {[%clk 0:00:11]}  a3 {[%clk 0:01:21]} 35. Qb1 {[%clk 0:00:10]}  Ra8 {[%clk 0:01:19]} 36. Qa2 {[%clk 0:00:09]}  Qh6 {[%clk 0:01:15]} 37. Re1 {[%clk 0:00:04]}  Qf4 {[%clk 0:01:09]} 38. Rb1 {[%clk 0:00:01]}  Qxg4+ {[%clk 0:01:08]} 39. Kf1 {[%clk 0:00:02]}  Qf5+ {[%clk 0:00:55]} 40. Ke2 {[%clk 0:00:01]}  Qe4+ {[%clk 0:00:27]} 41. Kf2 {[%clk 0:00:01]}  h5 {[%clk 0:00:21]} 42. Rxb7 {[%clk 0:00:01]}  Qxb7 {[%clk 0:00:20]} 43. h4 {[%clk 0:00:00]}  Qb2+ {[%clk 0:00:20]} 0-1

[Event "December 19 Early 2023"]
[Site "https://www.chess.com"]
[Date "2023.12.19"]
[Round "9"]
[White "Rangel, Daniel"]
[Black "Korol, Dimitry"]
[Result "1-0"]
[Board "101"]
[TimeControl "180+1"]
[WhiteFideId "2124475"]
[BlackFideId "14108003"]
[WhiteElo "2267"]
[BlackElo "2262"]
[WhiteTeam "BRA"]
[BlackTeam "UKR"]
[WhiteClock "0:00:42"]
[BlackClock "0:00:04"]

1. c4 {[%clk 0:02:57]}  c5 {[%clk 0:02:59]} 2. g3 {[%clk 0:02:58]}  g6 {[%clk 0:03:00]} 3. Bg2 {[%clk 0:02:59]}  Bg7 {[%clk 0:03:00]} 4. Nc3 {[%clk 0:02:59]}  Nc6 {[%clk 0:03:01]} 5. e3 {[%clk 0:03:00]}  Nh6 {[%clk 0:03:00]} 6. Nge2 {[%clk 0:03:00]}  Nf5 {[%clk 0:02:59]} 7. O-O {[%clk 0:03:00]}  h5 {[%clk 0:02:59]} 8. h4 {[%clk 0:02:59]}  a6 {[%clk 0:02:59]} 9. b3 {[%clk 0:02:55]}  Rb8 {[%clk 0:02:56]} 10. Bb2 {[%clk 0:02:55]}  d6 {[%clk 0:02:29]} 11. d3 {[%clk 0:02:54]}  Bd7 {[%clk 0:02:25]} 12. Qd2 {[%clk 0:02:54]}  O-O {[%clk 0:02:24]} 13. Rad1 {[%clk 0:02:46]}  b5 {[%clk 0:02:22]} 14. e4 {[%clk 0:02:11]}  Nfd4 {[%clk 0:02:21]} 15. Nxd4 {[%clk 0:02:11]}  Nxd4 {[%clk 0:02:21]} 16. Ne2 {[%clk 0:02:12]}  e5 {[%clk 0:01:02]} 17. Nc3 {[%clk 0:01:58]}  Kh7 {[%clk 0:00:36]} 18. Nd5 {[%clk 0:01:56]}  f5 {[%clk 0:00:21]} 19. Bxd4 {[%clk 0:01:54]}  cxd4 {[%clk 0:00:18]} 20. Rc1 {[%clk 0:01:38]}  Be6 {[%clk 0:00:16]} 21. f4 {[%clk 0:01:29]}  Bxd5 {[%clk 0:00:12]} 22. cxd5 {[%clk 0:01:26]}  exf4 {[%clk 0:00:12]} 23. exf5 {[%clk 0:01:10]}  Rxf5 {[%clk 0:00:11]} 24. Be4 {[%clk 0:01:04]}  Rf7 {[%clk 0:00:09]} 25. Qe2 {[%clk 0:01:01]}  Kh6 {[%clk 0:00:07]} 26. Qd2 {[%clk 0:00:52]}  Qe7 {[%clk 0:00:06]} 27. Rxf4 {[%clk 0:00:52]}  Rxf4 {[%clk 0:00:05]} 28. Qxf4+ {[%clk 0:00:52]}  Kh7 {[%clk 0:00:06]} 29. Qf3 {[%clk 0:00:53]}  Rf8 {[%clk 0:00:06]} 30. Qxh5+ {[%clk 0:00:53]}  Kg8 {[%clk 0:00:05]} 31. Qxg6 {[%clk 0:00:48]}  Qf6 {[%clk 0:00:02]} 32. Qxf6 {[%clk 0:00:47]}  Bxf6 {[%clk 0:00:01]} 33. Rc6 {[%clk 0:00:44]}  Be5 {[%clk 0:00:01]} 34. Kg2 {[%clk 0:00:43]}  Kg7 {[%clk 0:00:02]} 35. Rxa6 {[%clk 0:00:42]}  Kf6 {[%clk 0:00:02]} 36. g4 {[%clk 0:00:41]}  Rg8 {[%clk 0:00:03]} 37. g5+ {[%clk 0:00:41]}  Ke7 {[%clk 0:00:03]} 38. Ra7+ {[%clk 0:00:41]}  Kf8 {[%clk 0:00:03]} 39. Ra8+ {[%clk 0:00:40]}  Kg7 {[%clk 0:00:03]} 40. Rxg8+ {[%clk 0:00:41]}  Kxg8 {[%clk 0:00:04]} 41. a4 {[%clk 0:00:41]}  bxa4 {[%clk 0:00:04]} 42. bxa4 {[%clk 0:00:42]}  Kf8 {[%clk 0:00:04]} 43. a5 {[%clk 0:00:42]}  Ke7 {[%clk 0:00:04]} 44. a6 {[%clk 0:00:42]}  Kd7 {[%clk 0:00:05]} 45. a7 {[%clk 0:00:42]}  Kc7 {[%clk 0:00:04]} 46. a8=Q {[%clk 0:00:42]} 1-0

[Event "December 19 Early 2023"]
[Site "https://www.chess.com"]
[Date "2023.12.19"]
[Round "9"]
[White "Guimaraes, Wagner Peixoto"]
[Black "Avila Rodriguez, Joshua Ad"]
[Result "0-1"]
[Board "103"]
[TimeControl "180+1"]
[WhiteFideId "2100940"]
[BlackFideId "5126444"]
[WhiteElo "2140"]
[BlackElo "2097"]
[WhiteTeam "BRA"]
[BlackTeam "MEX"]
[WhiteClock "0:00:24"]
[BlackClock "0:00:27"]

1. e4 {[%clk 0:03:00]}  c5 {[%clk 0:02:59]} 2. Nf3 {[%clk 0:02:59]}  d6 {[%clk 0:02:59]} 3. d4 {[%clk 0:02:59]}  cxd4 {[%clk 0:03:00]} 4. Nxd4 {[%clk 0:02:59]}  Nf6 {[%clk 0:03:00]} 5. Nc3 {[%clk 0:03:00]}  a6 {[%clk 0:03:00]} 6. Bg5 {[%clk 0:02:59]}  e6 {[%clk 0:02:55]} 7. f4 {[%clk 0:02:59]}  h6 {[%clk 0:02:55]} 8. Bxf6 {[%clk 0:02:54]}  Qxf6 {[%clk 0:02:54]} 9. f5 {[%clk 0:02:55]}  Nc6 {[%clk 0:02:46]} 10. Nb3 {[%clk 0:02:48]}  b5 {[%clk 0:02:39]} 11. fxe6 {[%clk 0:02:35]}  fxe6 {[%clk 0:02:37]} 12. Bd3 {[%clk 0:02:16]}  Be7 {[%clk 0:02:21]} 13. Qh5+ {[%clk 0:02:04]}  g6 {[%clk 0:02:19]} 14. Qe2 {[%clk 0:01:48]}  Ne5 {[%clk 0:01:31]} 15. O-O-O {[%clk 0:01:41]}  Bb7 {[%clk 0:01:31]} 16. Kb1 {[%clk 0:01:40]}  O-O {[%clk 0:01:18]} 17. Rhf1 {[%clk 0:01:35]}  Qh4 {[%clk 0:01:09]} 18. Nd4 {[%clk 0:01:29]}  Bc8 {[%clk 0:01:00]} 19. Rxf8+ {[%clk 0:01:25]}  Bxf8 {[%clk 0:00:59]} 20. g3 {[%clk 0:01:23]}  Qg4 {[%clk 0:00:54]} 21. Qe1 {[%clk 0:00:54]}  Bd7 {[%clk 0:00:52]} 22. a3 {[%clk 0:00:48]}  Rc8 {[%clk 0:00:47]} 23. Be2 {[%clk 0:00:41]}  Qg5 {[%clk 0:00:40]} 24. Nf3 {[%clk 0:00:38]}  Nxf3 {[%clk 0:00:37]} 25. Bxf3 {[%clk 0:00:39]}  Qe5 {[%clk 0:00:36]} 26. Qd2 {[%clk 0:00:36]}  a5 {[%clk 0:00:35]} 27. Qd4 {[%clk 0:00:32]}  Qxd4 {[%clk 0:00:31]} 28. Rxd4 {[%clk 0:00:33]}  Kf7 {[%clk 0:00:27]} 29. b4 {[%clk 0:00:24]} 0-1

[Event "December 19 Early 2023"]
[Site "https://www.chess.com"]
[Date "2023.12.19"]
[Round "9"]
[White "Fernandez Siles, Luis"]
[Black "Tabuenca Mendataurigoitia, Daniel"]
[Result "0-1"]
[Board "105"]
[TimeControl "180+1"]
[WhiteFideId "2209420"]
[BlackFideId "24563617"]
[WhiteElo "2195"]
[BlackElo "2130"]
[WhiteTeam "ESP"]
[BlackTeam "ESP"]
[WhiteClock "0:00:02"]
[BlackClock "0:00:04"]

1. e4 {[%clk 0:03:00]}  Nc6 {[%clk 0:02:59]} 2. Nf3 {[%clk 0:03:00]}  d6 {[%clk 0:02:58]} 3. d4 {[%clk 0:02:58]}  Nf6 {[%clk 0:02:57]} 4. Nc3 {[%clk 0:02:57]}  g6 {[%clk 0:02:57]} 5. d5 {[%clk 0:02:51]}  Nb8 {[%clk 0:02:57]} 6. h3 {[%clk 0:02:50]}  Bg7 {[%clk 0:02:56]} 7. Be2 {[%clk 0:02:45]}  O-O {[%clk 0:02:55]} 8. O-O {[%clk 0:02:45]}  c6 {[%clk 0:02:55]} 9. Be3 {[%clk 0:02:38]}  e5 {[%clk 0:02:53]} 10. dxe6 {[%clk 0:02:36]}  Bxe6 {[%clk 0:02:52]} 11. Bg5 {[%clk 0:02:23]}  Qc7 {[%clk 0:02:44]} 12. Bf4 {[%clk 0:02:17]}  Rd8 {[%clk 0:02:40]} 13. Qc1 {[%clk 0:02:13]}  Nbd7 {[%clk 0:02:33]} 14. Nd4 {[%clk 0:02:01]}  Nc5 {[%clk 0:02:24]} 15. Nxe6 {[%clk 0:01:57]}  Nxe6 {[%clk 0:02:19]} 16. Bg3 {[%clk 0:01:46]}  Qb6 {[%clk 0:02:15]} 17. Rd1 {[%clk 0:01:36]}  d5 {[%clk 0:01:52]} 18. exd5 {[%clk 0:01:26]}  cxd5 {[%clk 0:01:51]} 19. Bf3 {[%clk 0:01:04]}  Nd4 {[%clk 0:01:44]} 20. Be2 {[%clk 0:00:41]}  Rac8 {[%clk 0:01:36]} 21. Be5 {[%clk 0:00:37]}  Nxe2+ {[%clk 0:01:34]} 22. Nxe2 {[%clk 0:00:37]}  Re8 {[%clk 0:01:29]} 23. Bd4 {[%clk 0:00:33]}  Qc6 {[%clk 0:01:20]} 24. Nc3 {[%clk 0:00:32]}  Ne4 {[%clk 0:01:06]} 25. Bxg7 {[%clk 0:00:31]}  Kxg7 {[%clk 0:01:05]} 26. Nxd5 {[%clk 0:00:19]}  Qxc2 {[%clk 0:01:02]} 27. Qf4 {[%clk 0:00:19]}  Qxb2 {[%clk 0:00:48]} 28. Rab1 {[%clk 0:00:20]}  Qxa2 {[%clk 0:00:48]} 29. Rxb7 {[%clk 0:00:20]}  Qxf2+ {[%clk 0:00:33]} 30. Qxf2 {[%clk 0:00:19]}  Nxf2 {[%clk 0:00:34]} 31. Kxf2 {[%clk 0:00:19]}  Rc2+ {[%clk 0:00:34]} 32. Kf3 {[%clk 0:00:18]}  Ree2 {[%clk 0:00:31]} 33. Ne3 {[%clk 0:00:17]}  Rf2+ {[%clk 0:00:29]} 34. Ke4 {[%clk 0:00:15]}  Ra2 {[%clk 0:00:25]} 35. Rdd7 {[%clk 0:00:15]}  Ra4+ {[%clk 0:00:18]} 36. Ke5 {[%clk 0:00:13]}  Ra5+ {[%clk 0:00:07]} 37. Ke4 {[%clk 0:00:11]}  Ra4+ {[%clk 0:00:07]} 38. Kd3 {[%clk 0:00:10]}  Ra3+ {[%clk 0:00:04]} 39. Ke4 {[%clk 0:00:09]}  a5 {[%clk 0:00:01]} 40. Ng4 {[%clk 0:00:08]}  Ra4+ {[%clk 0:00:02]} 41. Ke3 {[%clk 0:00:08]}  Rf5 {[%clk 0:00:02]} 42. Ra7 {[%clk 0:00:06]}  h5 {[%clk 0:00:02]} 43. Nh2 {[%clk 0:00:05]}  Ra3+ {[%clk 0:00:02]} 44. Ke4 {[%clk 0:00:05]}  Ra4+ {[%clk 0:00:01]} 45. Ke3 {[%clk 0:00:05]}  Ra3+ {[%clk 0:00:02]} 46. Ke4 {[%clk 0:00:05]}  Ra2 {[%clk 0:00:02]} 47. Nf3 {[%clk 0:00:05]}  Rxg2 {[%clk 0:00:02]} 48. Ne5 {[%clk 0:00:05]}  Re2+ {[%clk 0:00:03]} 49. Kd4 {[%clk 0:00:03]}  Rexe5 {[%clk 0:00:03]} 50. Rxf7+ {[%clk 0:00:03]}  Rxf7 {[%clk 0:00:03]} 51. Rxf7+ {[%clk 0:00:02]}  Kxf7 {[%clk 0:00:04]} 52. Kxe5 {[%clk 0:00:02]}  a4 {[%clk 0:00:04]} 0-1

[Event "December 19 Early 2023"]
[Site "https://www.chess.com"]
[Date "2023.12.19"]
[Round "9"]
[White "Tikhonov, Viacheslav"]
[Black "Vincenti, Leonardo"]
[Result "1-0"]
[Board "107"]
[TimeControl "180+1"]
[WhiteFideId "44196407"]
[BlackFideId "28550820"]
[WhiteElo "2209"]
[BlackElo "2054"]
[WhiteTeam "RUS"]
[BlackTeam "ITA"]
[WhiteClock "0:01:17"]
[BlackClock "0:01:53"]

1. e4 {[%clk 0:03:00]}  e6 {[%clk 0:02:58]} 2. d4 {[%clk 0:03:00]}  d5 {[%clk 0:02:59]} 3. Nc3 {[%clk 0:03:01]}  Nf6 {[%clk 0:02:57]} 4. Bg5 {[%clk 0:03:01]}  dxe4 {[%clk 0:02:52]} 5. Nxe4 {[%clk 0:03:00]}  Be7 {[%clk 0:02:52]} 6. Bxf6 {[%clk 0:02:59]}  Bxf6 {[%clk 0:02:52]} 7. Nf3 {[%clk 0:02:58]}  Nd7 {[%clk 0:02:52]} 8. c3 {[%clk 0:02:54]}  O-O {[%clk 0:02:50]} 9. Bd3 {[%clk 0:02:54]}  Be7 {[%clk 0:02:50]} 10. Qe2 {[%clk 0:02:45]}  Nc5 {[%clk 0:02:50]} 11. Nxc5 {[%clk 0:02:12]}  Bxc5 {[%clk 0:02:45]} 12. dxc5 {[%clk 0:02:09]}  Qd5 {[%clk 0:02:31]} 13. Qe4 {[%clk 0:02:04]}  Qh5 {[%clk 0:02:31]} 14. g4 {[%clk 0:01:57]}  Qh6 {[%clk 0:02:30]} 15. g5 {[%clk 0:01:52]}  Qh3 {[%clk 0:02:30]} 16. Qh4 {[%clk 0:01:45]}  Qxh4 {[%clk 0:02:24]} 17. Nxh4 {[%clk 0:01:46]}  e5 {[%clk 0:02:24]} 18. O-O-O {[%clk 0:01:40]}  g6 {[%clk 0:02:24]} 19. f3 {[%clk 0:01:37]}  Be6 {[%clk 0:02:23]} 20. Kc2 {[%clk 0:01:34]}  Bxa2 {[%clk 0:02:23]} 21. b3 {[%clk 0:01:35]}  Rad8 {[%clk 0:02:17]} 22. Bc4 {[%clk 0:01:32]}  e4 {[%clk 0:02:10]} 23. Rxd8 {[%clk 0:01:27]}  Rxd8 {[%clk 0:02:07]} 24. fxe4 {[%clk 0:01:27]}  Re8 {[%clk 0:02:01]} 25. Nf3 {[%clk 0:01:19]}  Rxe4 {[%clk 0:02:01]} 26. Ra1 {[%clk 0:01:19]}  Rf4 {[%clk 0:01:59]} 27. Nd2 {[%clk 0:01:19]}  Rg4 {[%clk 0:01:55]} 28. Rxa2 {[%clk 0:01:18]}  Rxg5 {[%clk 0:01:55]} 29. Rxa7 {[%clk 0:01:17]}  Rg2 {[%clk 0:01:55]} 30. Rxb7 {[%clk 0:01:17]}  Rxh2 {[%clk 0:01:56]} 31. Rxc7 {[%clk 0:01:17]}  h5 {[%clk 0:01:55]} 32. Rxf7 {[%clk 0:01:17]}  h4 {[%clk 0:01:53]} 33. Rf2+ {[%clk 0:01:17]} 1-0

[Event "December 19 Early 2023"]
[Site "https://www.chess.com"]
[Date "2023.12.19"]
[Round "9"]
[White "Yushko, Olga"]
[Black "Hnydiuk, Aleksander"]
[Result "0-1"]
[Board "108"]
[TimeControl "180+1"]
[WhiteFideId "14114500"]
[BlackFideId "1109057"]
[WhiteElo "1891"]
[BlackElo "2374"]
[WhiteTeam "UKR"]
[BlackTeam "POL"]
[WhiteClock "0:01:22"]
[BlackClock "0:01:01"]

1. d4 {[%clk 0:02:59]}  Nf6 {[%clk 0:02:58]} 2. c4 {[%clk 0:03:00]}  c5 {[%clk 0:02:59]} 3. d5 {[%clk 0:03:00]}  b5 {[%clk 0:02:59]} 4. cxb5 {[%clk 0:03:01]}  a6 {[%clk 0:03:00]} 5. b6 {[%clk 0:03:01]}  d6 {[%clk 0:02:56]} 6. Nc3 {[%clk 0:03:02]}  Nbd7 {[%clk 0:02:56]} 7. e4 {[%clk 0:03:02]}  g6 {[%clk 0:02:57]} 8. Nf3 {[%clk 0:03:02]}  Bg7 {[%clk 0:02:57]} 9. h3 {[%clk 0:03:02]}  O-O {[%clk 0:02:57]} 10. Bd3 {[%clk 0:03:03]}  Qxb6 {[%clk 0:02:54]} 11. O-O {[%clk 0:03:03]}  Ne8 {[%clk 0:02:44]} 12. Re1 {[%clk 0:02:58]}  Nc7 {[%clk 0:02:43]} 13. Qc2 {[%clk 0:02:56]}  Nb5 {[%clk 0:02:41]} 14. Bg5 {[%clk 0:02:53]}  Re8 {[%clk 0:02:39]} 15. Bf4 {[%clk 0:02:51]}  Bb7 {[%clk 0:02:22]} 16. Bc4 {[%clk 0:02:37]}  Rac8 {[%clk 0:02:19]} 17. e5 {[%clk 0:02:37]}  Nd4 {[%clk 0:02:17]} 18. Nxd4 {[%clk 0:02:28]}  cxd4 {[%clk 0:02:17]} 19. Na4 {[%clk 0:02:28]}  Qc7 {[%clk 0:02:02]} 20. e6 {[%clk 0:02:22]}  fxe6 {[%clk 0:01:46]} 21. dxe6 {[%clk 0:02:20]}  Ne5 {[%clk 0:01:46]} 22. Bxe5 {[%clk 0:02:19]}  Bxe5 {[%clk 0:01:44]} 23. Rac1 {[%clk 0:02:15]}  Bf4 {[%clk 0:01:37]} 24. Qd3 {[%clk 0:01:58]}  Bxc1 {[%clk 0:01:36]} 25. Rxc1 {[%clk 0:01:59]}  d5 {[%clk 0:01:35]} 26. Qxd4 {[%clk 0:01:56]}  dxc4 {[%clk 0:01:31]} 27. Rc3 {[%clk 0:01:48]}  Qc6 {[%clk 0:01:27]} 28. Rg3 {[%clk 0:01:41]}  Qxa4 {[%clk 0:01:19]} 29. Qf4 {[%clk 0:01:41]}  Qd1+ {[%clk 0:01:11]} 30. Kh2 {[%clk 0:01:40]}  Rf8 {[%clk 0:01:10]} 31. Qh6 {[%clk 0:01:38]}  Rf6 {[%clk 0:01:09]} 32. h4 {[%clk 0:01:33]}  Qd4 {[%clk 0:01:03]} 33. h5 {[%clk 0:01:27]}  Qh4+ {[%clk 0:01:02]} 34. Rh3 {[%clk 0:01:27]}  Qf4+ {[%clk 0:01:01]} 35. Rg3 {[%clk 0:01:22]}  Qxh6 {[%clk 0:01:01]} 0-1

[Event "December 19 Early 2023"]
[Site "https://www.chess.com"]
[Date "2023.12.19"]
[Round "9"]
[White "Nigalidze, Gaioz"]
[Black "Wanyama, Harold"]
[Result "1-0"]
[Board "111"]
[TimeControl "180+1"]
[WhiteFideId "13603078"]
[BlackFideId "10000380"]
[WhiteElo "2400"]
[BlackElo "2228"]
[WhiteTeam "GEO"]
[BlackTeam "UGA"]
[WhiteClock "0:01:00"]
[BlackClock "0:01:01"]

1. d4 {[%clk 0:03:00]}  d5 {[%clk 0:02:59]} 2. c4 {[%clk 0:02:59]}  e6 {[%clk 0:02:59]} 3. cxd5 {[%clk 0:02:57]}  exd5 {[%clk 0:02:58]} 4. Nc3 {[%clk 0:02:57]}  c6 {[%clk 0:02:59]} 5. Nf3 {[%clk 0:02:54]}  Nf6 {[%clk 0:02:51]} 6. Bg5 {[%clk 0:02:53]}  Bd6 {[%clk 0:02:51]} 7. e3 {[%clk 0:02:53]}  Nbd7 {[%clk 0:02:50]} 8. Bd3 {[%clk 0:02:52]}  O-O {[%clk 0:02:51]} 9. Qc2 {[%clk 0:02:52]}  h6 {[%clk 0:02:50]} 10. Bh4 {[%clk 0:02:51]}  Re8 {[%clk 0:02:50]} 11. O-O-O {[%clk 0:02:49]}  Qa5 {[%clk 0:02:48]} 12. Kb1 {[%clk 0:02:48]}  b5 {[%clk 0:02:47]} 13. g4 {[%clk 0:02:35]}  b4 {[%clk 0:02:36]} 14. Na4 {[%clk 0:02:34]}  c5 {[%clk 0:02:28]} 15. dxc5 {[%clk 0:02:29]}  Nxc5 {[%clk 0:02:15]} 16. Nxc5 {[%clk 0:02:29]}  Bxc5 {[%clk 0:02:15]} 17. Bxf6 {[%clk 0:02:29]}  gxf6 {[%clk 0:02:16]} 18. Bf5 {[%clk 0:02:03]}  b3 {[%clk 0:02:12]} 19. axb3 {[%clk 0:02:00]}  Bb7 {[%clk 0:02:04]} 20. Nd4 {[%clk 0:01:53]}  Qb6 {[%clk 0:02:01]} 21. h4 {[%clk 0:01:52]}  a5 {[%clk 0:01:54]} 22. g5 {[%clk 0:01:52]}  Bf8 {[%clk 0:01:48]} 23. Rhg1 {[%clk 0:01:39]}  Kh8 {[%clk 0:01:43]} 24. g6 {[%clk 0:01:36]}  fxg6 {[%clk 0:01:38]} 25. Rxg6 {[%clk 0:01:24]}  Bg7 {[%clk 0:01:34]} 26. Rdg1 {[%clk 0:01:22]}  Re7 {[%clk 0:01:35]} 27. Ne6 {[%clk 0:01:18]}  Rc8 {[%clk 0:01:26]} 28. Qd3 {[%clk 0:01:06]}  Rxe6 {[%clk 0:01:01]} 29. Rxg7 {[%clk 0:01:00]} 1-0

[Event "December 19 Early 2023"]
[Site "https://www.chess.com"]
[Date "2023.12.19"]
[Round "9"]
[White "Kim, Sergey"]
[Black "Stillger, Bernhard"]
[Result "0-1"]
[Board "112"]
[TimeControl "180+1"]
[WhiteFideId "13700570"]
[BlackFideId "4610768"]
[WhiteElo "2589"]
[BlackElo "2252"]
[WhiteTeam "KAZ"]
[BlackTeam "GER"]
[WhiteClock "0:01:37"]
[BlackClock "0:01:21"]

1. d4 {[%clk 0:03:00]}  Nf6 {[%clk 0:02:58]} 2. c4 {[%clk 0:03:00]}  g6 {[%clk 0:02:59]} 3. Nc3 {[%clk 0:03:00]}  d5 {[%clk 0:02:59]} 4. cxd5 {[%clk 0:03:00]}  Nxd5 {[%clk 0:02:59]} 5. e4 {[%clk 0:03:00]}  Nxc3 {[%clk 0:02:59]} 6. bxc3 {[%clk 0:03:01]}  Bg7 {[%clk 0:02:59]} 7. Bc4 {[%clk 0:03:02]}  c5 {[%clk 0:02:59]} 8. Ne2 {[%clk 0:03:02]}  Nc6 {[%clk 0:02:58]} 9. Be3 {[%clk 0:03:02]}  O-O {[%clk 0:02:58]} 10. O-O {[%clk 0:03:01]}  Na5 {[%clk 0:02:58]} 11. Bd3 {[%clk 0:03:00]}  b6 {[%clk 0:02:58]} 12. Qd2 {[%clk 0:03:00]}  cxd4 {[%clk 0:02:57]} 13. cxd4 {[%clk 0:03:00]}  e6 {[%clk 0:02:57]} 14. Bh6 {[%clk 0:02:59]}  Bb7 {[%clk 0:02:51]} 15. Bxg7 {[%clk 0:02:58]}  Kxg7 {[%clk 0:02:51]} 16. Qf4 {[%clk 0:02:55]}  Qf6 {[%clk 0:02:45]} 17. Qg3 {[%clk 0:02:54]}  Rac8 {[%clk 0:02:41]} 18. Rac1 {[%clk 0:02:50]}  Rxc1 {[%clk 0:02:39]} 19. Rxc1 {[%clk 0:02:49]}  Rc8 {[%clk 0:02:39]} 20. Rxc8 {[%clk 0:02:46]}  Bxc8 {[%clk 0:02:40]} 21. Qc7 {[%clk 0:02:34]}  Bb7 {[%clk 0:02:35]} 22. f4 {[%clk 0:02:24]}  Qh4 {[%clk 0:02:02]} 23. Ng3 {[%clk 0:02:18]}  Qf6 {[%clk 0:01:48]} 24. Ne2 {[%clk 0:01:59]}  Qh4 {[%clk 0:01:48]} 25. g3 {[%clk 0:01:49]}  Qg4 {[%clk 0:01:21]} 26. Kg2 {[%clk 0:01:37]}  Bxe4+ {[%clk 0:01:21]} 0-1